fUST/lending_fUST_20240805
["ID","MTS","AMOUNT","RATE_DAILY","PERIOD"]
[334242087,1722855876831,-889.04,0.00041643,31]
[334242088,1722855876873,-500.0,0.00041643,31]
[334242089,1722855876917,-500.0,0.00041643,31]
[334242090,1722855876962,-500.0,0.00041643,31]
[334242091,1722855877009,-500.0,0.00041643,31]
[334242092,1722855877051,-500.0,0.00041643,31]
[334242093,1722855877095,-500.0,0.00041643,31]
[334242094,1722855877139,-500.0,0.00041643,31]
[334242095,1722855877184,-505.33,0.00041643,31]
[334242096,1722855877231,-500.0,0.00041643,31]
[334242097,1722855877278,-500.0,0.00041643,31]
[334242098,1722855877321,-1260.62,0.00041643,31]
[334242099,1722855877362,-500.0,0.00041643,31]
[334242100,1722855877403,-500.0,0.00041643,31]
[334242101,1722855877448,-573.31,0.00041643,31]
[334242102,1722855877495,-790.04,0.00041643,31]
[334242103,1722855877540,-1310.1,0.00041643,31]
[334242104,1722855877586,-500.0,0.00041643,31]
[334242105,1722855877633,-994.56,0.00041643,31]
[334242106,1722855877680,-500.0,0.00041643,31]
[334242107,1722855877733,-7984.69,0.00041643,31]
[334242108,1722855877778,-549.92,0.00041643,31]
[334242109,1722855877822,-500.0,0.00041643,31]
[334242110,1722855877867,-6173.34,0.00041643,31]
[334242111,1722855877912,-500.0,0.00041643,31]
[334242112,1722855877956,-500.0,0.00041643,31]
[334242113,1722855878003,-908.96,0.00041643,31]
[334242114,1722855878046,-727.99,0.00041643,31]
[334242115,1722855878094,-1072.4,0.00041643,31]
[334242116,1722855878138,-500.0,0.00041643,31]
[334242117,1722855878186,-500.0,0.00041643,31]
[334242118,1722855878232,-500.0,0.00041643,31]
[334242119,1722855878275,-500.0,0.00041643,31]
[334242120,1722855878318,-500.0,0.00041643,31]
[334242121,1722855878364,-9665.63,0.00041643,31]
[334242122,1722855878406,-857.1,0.00041643,31]
[334242123,1722855878448,-1424.37,0.00041643,31]
[334242124,1722855878489,-500.0,0.00041643,31]
[334242125,1722855878529,-500.0,0.00041643,31]
[334242126,1722855878567,-500.0,0.00041643,31]
[334242127,1722855878611,-519.23184337,0.00041643,31]
[334242128,1722855878656,-803.81,0.00041643,31]
[334242129,1722855878699,-825.94,0.00041643,31]
[334242130,1722855878739,-12236.57,0.00041643,120]
[334242131,1722855878779,-500.0,0.00041643,31]
[334242132,1722855878818,-500.0,0.00041643,31]
[334242133,1722855878857,-500.0,0.00041643,31]
[334242134,1722855878898,-3748.41,0.00041643,31]
[334242135,1722855878936,-500.0,0.00041643,31]
[334242136,1722855878979,-2909.32,0.00041643,31]
[334242137,1722855879017,-500.0,0.00041643,31]
[334242138,1722855879054,-500.0,0.00041643,31]
[334242139,1722855879094,-500.0,0.00041643,31]
[334242140,1722855879133,-500.0,0.00041643,31]
[334242141,1722855879173,-767.28,0.00041643,31]
[334242142,1722855879347,-4015.88,0.00041643,31]
[334242143,1722855879388,-500.0,0.00041643,31]
[334242144,1722855879428,-500.0,0.00041643,31]
[334242145,1722855879468,-1014.51,0.00041643,31]
[334242146,1722855879512,-1174.29,0.00041643,31]
[334242147,1722855879549,-315.16470168,0.00041643,31]
[334242148,1722855879587,-500.0,0.00041643,31]
[334242149,1722855879625,-754.85,0.00041643,31]
[334242150,1722855879662,-1374.17,0.00041643,31]
[334242151,1722855879698,-1031.24,0.00041643,31]
[334242152,1722855879735,-500.0,0.00041643,31]
[334242153,1722855879771,-500.0,0.00041643,31]
[334242154,1722855879807,-500.0,0.00041643,31]
[334242155,1722855879843,-500.0,0.00041643,31]
[334242156,1722855879889,-670.71,0.00041643,31]
[334242157,1722855879938,-500.0,0.00041643,31]
[334242158,1722855879987,-500.0,0.00041643,31]
[334242159,1722855880032,-2005.0,0.00041643,31]
[334242160,1722855880077,-1974.46,0.00041643,31]
[334242161,1722855880121,-1304.72,0.00041643,31]
[334242162,1722855880163,-376.06398289,0.00041643,31]
[334242163,1722855880203,-500.0,0.00041643,31]
[334242164,1722855880243,-500.0,0.00041643,31]
[334242165,1722855880285,-500.0,0.00041643,31]
[334242166,1722855880326,-500.0,0.00041643,31]
[334242167,1722855880366,-500.0,0.00041643,31]
[334242168,1722855880406,-552.41,0.00041643,31]
[334242169,1722855880447,-939.28,0.00041643,31]
[334242170,1722855880488,-524.54,0.00041643,31]
[334242171,1722855880527,-500.0,0.00041643,31]
[334242172,1722855880568,-6176.67,0.00041643,31]
[334242173,1722855880609,-1355.54,0.00041643,31]
[334242174,1722855880649,-782.29,0.00041643,31]
[334242175,1722855880689,-500.0,0.00041643,31]
[334242176,1722855880735,-982.1,0.00041643,31]
[334242177,1722855880780,-820.99,0.00041643,31]
[334242178,1722855880822,-500.0,0.00041643,31]
[334242179,1722855880861,-500.0,0.00041643,31]
[334242180,1722855880901,-500.0,0.00041643,31]
[334242181,1722855880943,-500.0,0.00041643,31]
[334242182,1722855880985,-640.04,0.00041643,31]
[334242183,1722855881024,-1102.87,0.00041643,31]
[334242184,1722855881068,-5000.0,0.00042,42]
[334242185,1722855881107,-1151.98487894,0.00042,30]
[334242186,1722855881147,-300.0,0.00042,120]
[334242187,1722855881187,-500000.0,0.0004216,30]
[334242188,1722855881230,-512.40565438,0.00042191,31]
[334242189,1722855881271,-500.0,0.00042191,31]
[334242190,1722855881310,-500.0,0.00042191,31]
[334242191,1722855881349,-500.0,0.00042191,31]
[334242192,1722855881388,-500.0,0.00042191,31]
[334242193,1722855881429,-500.0,0.00042191,31]
[334242194,1722855881469,-500.0,0.00042191,31]
[334242195,1722855881520,-10587.87307826,0.00042191,120]
[334242196,1722855881563,-500.0,0.00042191,31]
[334242197,1722855881605,-500.0,0.00042191,31]
[334242198,1722855881651,-500.0,0.00042191,31]
[334242199,1722855881694,-500.0,0.00042191,31]
[334242200,1722855881738,-500.0,0.00042191,31]
[334242201,1722855881780,-500.0,0.00042191,31]
[334242202,1722855881822,-648.07,0.00042191,31]
[334242203,1722855881863,-629.74,0.00042191,31]
[334242204,1722855881905,-505.32922442,0.00042191,31]
[334242205,1722855881948,-500.0,0.00042191,31]
[334242206,1722855881992,-1276.5,0.00042191,31]
[334242207,1722855882034,-500.0,0.00042191,31]
[334242208,1722855882073,-500.0,0.00042191,31]
[334242209,1722855882115,-500.0,0.00042191,31]
[334242210,1722855882155,-500.0,0.00042191,31]
[334242211,1722855882196,-5000.0,0.00042191,30]
[334242212,1722855882236,-556.09,0.00042191,31]
[334242213,1722855882276,-500.0,0.00042191,31]
[334242214,1722855882315,-500.0,0.00042191,31]
[334242215,1722855882355,-500.0,0.00042191,31]
[334242216,1722855882394,-500.0,0.00042191,31]
[334242217,1722855882432,-410.10705443,0.00042191,31]
[334242218,1722855882470,-823.07,0.00042191,31]
[334242219,1722855882516,-500.0,0.00042191,31]
[334242220,1722855882555,-500.0,0.00042191,31]
[334242221,1722855882596,-500.0,0.00042191,31]
[334242222,1722855882634,-500.0,0.00042191,31]
[334242223,1722855882672,-500.0,0.00042191,31]
[334242224,1722855882711,-522.24563345,0.00042191,31]
[334242225,1722855882755,-500.0,0.00042191,31]
[334242226,1722855882792,-500.0,0.00042191,31]
[334242227,1722855882831,-500.0,0.00042191,31]
[334242228,1722855882871,-500.0,0.00042191,31]
[334242229,1722855882913,-500.0,0.00042191,31]
[334242230,1722855882955,-574.39,0.00042191,31]
[334242231,1722855882998,-595.43,0.00042191,31]
[334242232,1722855883040,-500.0,0.00042191,31]
[334242233,1722855883082,-500.0,0.00042191,31]
[334242234,1722855883123,-500.0,0.00042191,31]
[334242235,1722855883165,-866.48,0.00042191,31]
[334242236,1722855883209,-500.0,0.00042191,31]
[334242237,1722855883257,-500.0,0.00042191,31]
[334242238,1722855883302,-500.0,0.00042191,31]
[334242239,1722855883348,-500.0,0.00042191,31]
[334242240,1722855883392,-590.56,0.00042191,31]
[334242241,1722855883439,-500.0,0.00042191,31]
[334242242,1722855883489,-500.0,0.00042191,31]
[334242243,1722855883534,-500.0,0.00042191,31]
[334242244,1722855883579,-500.0,0.00042191,31]
[334242245,1722855883626,-500.0,0.00042191,31]
[334242246,1722855883811,-500.0,0.00042191,31]
[334242247,1722855883859,-902.94,0.00042191,31]
[334242248,1722855883908,-500.0,0.00042191,31]
[334242249,1722855883957,-500.0,0.00042191,31]
[334242250,1722855884007,-500.0,0.00042191,31]
[334242251,1722855884057,-500.0,0.00042191,31]
[334242252,1722855884103,-500.0,0.00042191,31]
[334242253,1722855884148,-500.0,0.00042191,31]
[334242254,1722855884193,-500.0,0.00042191,31]
[334242255,1722855884239,-500.0,0.00042191,31]
[334242256,1722855884285,-500.0,0.00042191,31]
[334242257,1722855884330,-500.0,0.00042191,31]
[334242258,1722855884375,-500.0,0.00042191,31]
[334242259,1722855884422,-1022.66,0.00042191,31]
[334242260,1722855884469,-500.0,0.00042191,31]
[334242261,1722855884518,-943.74,0.00042191,31]
[334242262,1722855884561,-500.0,0.00042191,31]
[334242263,1722855884606,-500.0,0.00042191,31]
[334242264,1722855884650,-1053.19,0.00042191,31]
[334242265,1722855884693,-500.0,0.00042191,31]
[334242266,1722855884744,-584.69,0.00042191,31]
[334242267,1722855884786,-1305.1,0.00042191,31]
[334242268,1722855884831,-500.0,0.00042191,31]
[334242269,1722855884876,-500.0,0.00042191,31]
[334242270,1722855884921,-500.0,0.00042191,31]
[334242271,1722855884964,-553.49,0.00042191,31]
[334242272,1722855885011,-500.0,0.00042191,31]
[334242273,1722855885058,-500.0,0.00042191,31]
[334242274,1722855885117,-500.0,0.00042191,31]
[334242275,1722855885161,-500.0,0.00042191,31]
[334242276,1722855885203,-898.41,0.00042191,31]
[334242277,1722855885242,-506.55718278,0.00042191,31]
[334242278,1722855885282,-500.0,0.00042191,31]
[334242279,1722855885324,-500.0,0.00042191,31]
[334242280,1722855885366,-500.0,0.00042191,31]
[334242281,1722855885407,-500.0,0.00042191,31]
[334242282,1722855885447,-989.94,0.00042191,31]
[334242283,1722855885488,-548.17208314,0.00042191,31]
[334242284,1722855885531,-500.0,0.00042191,31]
[334242285,1722855885575,-500.0,0.00042191,31]
[334242286,1722855885616,-613.99,0.00042191,31]
[334242287,1722855885656,-500.0,0.00042191,31]
[334242288,1722855885699,-530.57,0.00042191,31]
[334242289,1722855885737,-500.0,0.00042191,31]
[334242290,1722855885776,-500.0,0.00042191,31]
[334242291,1722855885813,-616.76,0.00042191,31]
[334242292,1722855885851,-500.0,0.00042191,31]
[334242293,1722855885891,-694.59,0.00042191,31]
[334242294,1722855885932,-1013.28,0.00042191,31]
[334242295,1722855885970,-500.0,0.00042191,31]
[334242296,1722855886017,-8149.15,0.00042191,31]
[334242297,1722855886060,-500.0,0.00042191,31]
[334242298,1722855886107,-2171.38,0.00042191,31]
[334242299,1722855886150,-867.75,0.00042191,31]
[334242300,1722855886195,-500.0,0.00042191,31]
[334242301,1722855886243,-13964.26,0.00042191,31]
[334242302,1722855886286,-500.0,0.00042191,31]
[334242303,1722855886326,-623.8,0.00042191,31]
[334242304,1722855886365,-500.0,0.00042191,31]
[334242305,1722855886402,-1321.46,0.00042191,31]
[334242306,1722855886440,-500.0,0.00042191,31]
[334242307,1722855886481,-500.0,0.00042191,31]
[334242308,1722855886517,-500.0,0.00042191,31]
[334242309,1722855886553,-781.23,0.00042191,31]
[334242310,1722855886589,-500.0,0.00042191,31]
[334242311,1722855886627,-615.54,0.00042191,31]
[334242312,1722855886668,-952.95,0.00042191,31]
[334242313,1722855886709,-538.82,0.00042191,31]
[334242314,1722855886762,-500.0,0.00042191,31]
[334242315,1722855886804,-500.0,0.00042191,31]
[334242316,1722855886845,-286.52029412,0.00042191,31]
[334242317,1722855886888,-1921.77,0.00042191,31]
[334242318,1722855886929,-2841.01,0.00042191,31]
[334242319,1722855886970,-500.0,0.00042191,31]
[334242320,1722855887021,-500.0,0.00042191,31]
[334242321,1722855887066,-500.0,0.00042191,31]
[334242322,1722855887113,-629.38,0.00042191,31]
[334242323,1722855887160,-720.86,0.00042191,31]
[334242324,1722855887203,-500.0,0.00042191,31]
[334242325,1722855887244,-500.0,0.00042191,30]
[334242326,1722855887288,-3289.33,0.00042191,31]
[334242327,1722855887329,-702.68,0.00042191,31]
[334242328,1722855887368,-500.0,0.00042191,31]
[334242329,1722855887406,-500.0,0.00042191,31]
[334242330,1722855887444,-500.0,0.00042191,31]
[334242331,1722855887491,-2296.59,0.00042191,31]
[334242332,1722855887531,-1814.25,0.00042191,31]
[334242333,1722855887566,-428.33980286,0.00042191,31]
[334242334,1722855887605,-533.83822823,0.00042191,31]
[334242335,1722855887646,-753.6,0.00042191,31]
[334242336,1722855887686,-1640.04,0.00042191,31]
[334242337,1722855887732,-4120.74,0.00042191,31]
[334242338,1722855887771,-500.0,0.00042191,31]
[334242339,1722855887809,-500.0,0.00042191,31]
[334242340,1722855887848,-889.04,0.00042191,31]
[334242341,1722855887885,-500.0,0.00042191,31]
[334242342,1722855887924,-500.0,0.00042191,31]
[334242343,1722855887964,-500.0,0.00042191,31]
[334242344,1722855888006,-500.0,0.00042191,31]
[334242345,1722855888045,-500.0,0.00042191,31]
[334242346,1722855888088,-500.0,0.00042191,31]
[334242347,1722855888127,-500.0,0.00042191,31]
[334242348,1722855888169,-505.33,0.00042191,31]
[334242349,1722855888344,-500.0,0.00042191,31]
[334242350,1722855888389,-500.0,0.00042191,31]
[334242351,1722855888436,-1260.62,0.00042191,31]
[334242352,1722855888481,-500.0,0.00042191,31]
[334242353,1722855888520,-500.0,0.00042191,31]
[334242354,1722855888562,-573.31,0.00042191,31]
[334242355,1722855888605,-790.04,0.00042191,31]
[334242356,1722855888648,-1310.1,0.00042191,31]
[334242357,1722855888688,-500.0,0.00042191,31]
[334242358,1722855888736,-994.56,0.00042191,31]
[334242359,1722855888780,-500.0,0.00042191,31]
[334242360,1722855888825,-7984.69,0.00042191,31]
[334242361,1722855888869,-549.92,0.00042191,31]
[334242362,1722855888913,-500.0,0.00042191,31]
[334242363,1722855888958,-500.0,0.00042191,31]
[334242364,1722855889008,-500.0,0.00042191,31]
[334242365,1722855889050,-908.96,0.00042191,31]
[334242366,1722855889097,-6173.34,0.00042191,31]
[334242367,1722855889142,-727.99,0.00042191,31]
[334242368,1722855889186,-1072.4,0.00042191,31]
[334242369,1722855889231,-500.0,0.00042191,31]
[334242370,1722855889275,-500.0,0.00042191,31]
[334242371,1722855889316,-520.05313185,0.00042191,31]
[334242372,1722855889359,-500.0,0.00042191,31]
[334242373,1722855889402,-500.0,0.00042191,31]
[334242374,1722855889445,-9665.63,0.00042191,31]
[334242375,1722855889488,-857.1,0.00042191,31]
[334242376,1722855889531,-1424.37,0.00042191,31]
[334242377,1722855889574,-500.0,0.00042191,31]
[334242378,1722855889622,-500.0,0.00042191,31]
[334242379,1722855889667,-402.16070971,0.00042191,31]
[334242380,1722855889712,-803.81,0.00042191,31]
[334242381,1722855889766,-825.94,0.00042191,31]
[334242382,1722855889809,-12236.57,0.00042191,120]
[334242383,1722855889853,-500.0,0.00042191,31]
[334242384,1722855889897,-500.0,0.00042191,31]
[334242385,1722855889941,-3748.41,0.00042191,31]
[334242386,1722855889987,-500.0,0.00042191,31]
[334242387,1722855890028,-500.0,0.00042191,31]
[334242388,1722855890075,-2909.32,0.00042191,31]
[334242389,1722855890116,-500.0,0.00042191,31]
[334242390,1722855890158,-500.0,0.00042191,31]
[334242391,1722855890200,-500.0,0.00042191,31]
[334242392,1722855890243,-500.0,0.00042191,31]
[334242393,1722855890287,-767.28,0.00042191,31]
[334242394,1722855890330,-4015.88,0.00042191,31]
[334242395,1722855890374,-500.0,0.00042191,31]
[334242396,1722855890422,-500.0,0.00042191,31]
[334242397,1722855890465,-1014.51,0.00042191,31]
[334242398,1722855890516,-1174.29,0.00042191,31]
[334242399,1722855890559,-500.0,0.00042191,31]
[334242400,1722855890599,-754.85,0.00042191,31]
[334242401,1722855890638,-1374.17,0.00042191,31]
[334242402,1722855890677,-1031.24,0.00042191,31]
[334242403,1722855890718,-500.0,0.00042191,31]
[334242404,1722855890765,-500.0,0.00042191,31]
[334242405,1722855890806,-500.0,0.00042191,31]
[334242406,1722855890846,-500.0,0.00042191,31]
[334242407,1722855890887,-670.71,0.00042191,31]
[334242408,1722855890927,-500.0,0.00042191,31]
[334242409,1722855890969,-500.0,0.00042191,31]
[334242410,1722855891016,-2005.0,0.00042191,31]
[334242411,1722855891055,-1974.46,0.00042191,31]
[334242412,1722855891096,-1304.72,0.00042191,31]
[334242413,1722855891135,-500.0,0.00042191,31]
[334242414,1722855891173,-500.0,0.00042191,31]
[334242415,1722855891210,-531.55110282,0.00042191,31]
[334242416,1722855891246,-500.0,0.00042191,31]
[334242417,1722855891282,-500.0,0.00042191,31]
[334242418,1722855891318,-552.41,0.00042191,31]
[334242419,1722855891355,-939.28,0.00042191,31]
[334242420,1722855891391,-524.54,0.00042191,31]
[334242421,1722855891427,-500.0,0.00042191,31]
[334242422,1722855891466,-6176.67,0.00042191,31]
[334242423,1722855891509,-1355.54,0.00042191,31]
[334242424,1722855891547,-782.29,0.00042191,31]
[334242425,1722855891582,-556.03122695,0.00042191,31]
[334242426,1722855891619,-982.1,0.00042191,31]
[334242427,1722855891655,-820.99,0.00042191,31]
[334242428,1722855891690,-500.0,0.00042191,31]
[334242429,1722855891727,-402.93000974,0.00042191,31]
[334242430,1722855891772,-500.0,0.00042191,31]
[334242431,1722855891811,-500.0,0.00042191,31]
[334242432,1722855891849,-5112.575,0.0004264,120]
[334242433,1722855891885,-500.0,0.00042739,31]
[334242434,1722855891922,-500.0,0.00042739,31]
[334242435,1722855891957,-403.87406299,0.00042739,31]
[334242436,1722855891999,-500.0,0.00042739,31]
[334242437,1722855892036,-619.63425419,0.00042739,31]
[334242438,1722855892075,-500.0,0.00042739,31]
[334242439,1722855892113,-500.0,0.00042739,31]
[334242440,1722855892150,-500.0,0.00042739,31]
[334242441,1722855892190,-500.0,0.00042739,31]
[334242442,1722855892228,-505.1863902,0.00042739,31]
[334242443,1722855892271,-500.0,0.00042739,31]
[334242444,1722855892311,-500.0,0.00042739,31]
[334242445,1722855892350,-648.07,0.00042739,31]
[334242446,1722855892387,-629.74,0.00042739,31]
[334242447,1722855892429,-500.0,0.00042739,31]
[334242448,1722855892470,-1276.5,0.00042739,31]
[334242449,1722855892513,-500.0,0.00042739,31]
[334242450,1722855892551,-500.0,0.00042739,31]
[334242451,1722855892588,-500.0,0.00042739,31]
[334242452,1722855892624,-362.11131788,0.00042739,31]
[334242453,1722855892804,-556.09,0.00042739,31]
[334242454,1722855892845,-500.0,0.00042739,31]
[334242455,1722855892885,-500.0,0.00042739,31]
[334242456,1722855892924,-500.0,0.00042739,31]
[334242457,1722855892965,-339.46183394,0.00042739,31]
[334242458,1722855893009,-823.07,0.00042739,31]
[334242459,1722855893049,-500.0,0.00042739,31]
[334242460,1722855893089,-500.0,0.00042739,31]
[334242461,1722855893131,-500.0,0.00042739,31]
[334242462,1722855893171,-500.0,0.00042739,31]
[334242463,1722855893214,-500.0,0.00042739,31]
[334242464,1722855893259,-500.0,0.00042739,31]
[334242465,1722855893302,-500.0,0.00042739,31]
[334242466,1722855893344,-500.0,0.00042739,31]
[334242467,1722855893386,-318.31837103,0.00042739,31]
[334242468,1722855893429,-500.0,0.00042739,31]
[334242469,1722855893471,-574.39,0.00042739,31]
[334242470,1722855893515,-595.43,0.00042739,31]
[334242471,1722855893555,-500.0,0.00042739,31]
[334242472,1722855893602,-500.0,0.00042739,31]
[334242473,1722855893646,-500.0,0.00042739,31]
[334242474,1722855893691,-866.48,0.00042739,31]
[334242475,1722855893739,-500.0,0.00042739,31]
[334242476,1722855893783,-500.0,0.00042739,31]
[334242477,1722855893827,-500.0,0.00042739,31]
[334242478,1722855893871,-500.0,0.00042739,31]
[334242479,1722855893915,-590.56,0.00042739,31]
[334242480,1722855893959,-500.0,0.00042739,31]
[334242481,1722855894002,-500.0,0.00042739,31]
[334242482,1722855894044,-500.0,0.00042739,31]
[334242483,1722855894088,-500.0,0.00042739,31]
[334242484,1722855894129,-544.11009543,0.00042739,31]
[334242485,1722855894172,-500.0,0.00042739,31]
[334242486,1722855894214,-902.94,0.00042739,31]
[334242487,1722855894255,-500.0,0.00042739,31]
[334242488,1722855894296,-500.0,0.00042739,31]
[334242489,1722855894335,-500.0,0.00042739,31]
[334242490,1722855894377,-500.0,0.00042739,31]
[334242491,1722855894419,-500.0,0.00042739,31]
[334242492,1722855894461,-500.0,0.00042739,31]
[334242493,1722855894505,-500.0,0.00042739,31]
[334242494,1722855894546,-500.0,0.00042739,31]
[334242495,1722855894588,-500.0,0.00042739,31]
[334242496,1722855894631,-500.0,0.00042739,31]
[334242497,1722855894672,-500.0,0.00042739,31]
[334242498,1722855894714,-1022.66,0.00042739,31]
[334242499,1722855894765,-500.0,0.00042739,31]
[334242500,1722855894810,-943.74,0.00042739,31]
[334242501,1722855894853,-500.0,0.00042739,31]
[334242502,1722855894898,-500.0,0.00042739,31]
[334242503,1722855894942,-1053.19,0.00042739,31]
[334242504,1722855894991,-500.0,0.00042739,31]
[334242505,1722855895034,-584.69,0.00042739,31]
[334242506,1722855895080,-1305.1,0.00042739,31]
[334242507,1722855895126,-500.0,0.00042739,31]
[334242508,1722855895168,-500.0,0.00042739,31]
[334242509,1722855895210,-500.0,0.00042739,31]
[334242510,1722855895254,-553.49,0.00042739,31]
[334242511,1722855895296,-500.0,0.00042739,31]
[334242512,1722855895338,-500.0,0.00042739,31]
[334242513,1722855895379,-500.0,0.00042739,31]
[334242514,1722855895421,-500.0,0.00042739,31]
[334242515,1722855895462,-898.41,0.00042739,31]
[334242516,1722855895504,-500.0,0.00042739,31]
[334242517,1722855895547,-500.0,0.00042739,31]
[334242518,1722855895593,-500.0,0.00042739,31]
[334242519,1722855895638,-500.0,0.00042739,31]
[334242520,1722855895685,-989.94,0.00042739,31]
[334242521,1722855895736,-500.0,0.00042739,31]
[334242522,1722855895783,-500.0,0.00042739,31]
[334242523,1722855895829,-613.99,0.00042739,31]
[334242524,1722855895876,-500.0,0.00042739,31]
[334242525,1722855895922,-530.57,0.00042739,31]
[334242526,1722855895969,-500.0,0.00042739,31]
[334242527,1722855896019,-500.0,0.00042739,31]
[334242528,1722855896064,-616.76,0.00042739,31]
[334242529,1722855896113,-500.0,0.00042739,31]
[334242530,1722855896160,-694.59,0.00042739,31]
[334242531,1722855896206,-1013.28,0.00042739,31]
[334242532,1722855896250,-500.0,0.00042739,31]
[334242533,1722855896294,-8149.15,0.00042739,31]
[334242534,1722855896337,-500.0,0.00042739,31]
[334242535,1722855896383,-2171.38,0.00042739,31]
[334242536,1722855896431,-867.75,0.00042739,31]
[334242537,1722855896485,-500.0,0.00042739,31]
[334242538,1722855896528,-13964.26,0.00042739,31]
[334242539,1722855896571,-500.0,0.00042739,31]
[334242540,1722855896613,-623.8,0.00042739,31]
[334242541,1722855896657,-500.0,0.00042739,31]
[334242542,1722855896701,-1321.46,0.00042739,31]
[334242543,1722855896743,-500.0,0.00042739,31]
[334242544,1722855896785,-500.0,0.00042739,31]
[334242545,1722855896828,-500.0,0.00042739,31]
[334242546,1722855896871,-781.23,0.00042739,31]
[334242547,1722855896913,-500.0,0.00042739,31]
[334242548,1722855896956,-615.54,0.00042739,31]
[334242549,1722855896998,-952.95,0.00042739,31]
[334242550,1722855897040,-538.82,0.00042739,31]
[334242551,1722855897086,-500.0,0.00042739,31]
[334242552,1722855897151,-500.0,0.00042739,31]
[334242553,1722855897198,-1921.77,0.00042739,31]
[334242554,1722855897247,-2841.01,0.00042739,31]
[334242555,1722855897292,-500.0,0.00042739,31]
[334242556,1722855897337,-500.0,0.00042739,31]
[334242557,1722855897581,-500.0,0.00042739,31]
[334242558,1722855897624,-629.38,0.00042739,31]
[334242559,1722855897667,-720.86,0.00042739,31]
[334242560,1722855897708,-500.0,0.00042739,31]
[334242561,1722855897749,-468.48022458,0.00042739,30]
[334242562,1722855897790,-3289.33,0.00042739,31]
[334242563,1722855897833,-702.68,0.00042739,31]
[334242564,1722855897873,-500.0,0.00042739,31]
[334242565,1722855897914,-500.0,0.00042739,31]
[334242566,1722855897956,-500.0,0.00042739,31]
[334242567,1722855897996,-2296.59,0.00042739,31]
[334242568,1722855898038,-1814.25,0.00042739,31]
[334242569,1722855898080,-753.6,0.00042739,31]
[334242570,1722855898120,-1640.04,0.00042739,31]
[334242571,1722855898159,-4120.74,0.00042739,31]
[334242572,1722855898199,-500.0,0.00042739,31]
[334242573,1722855898246,-500.0,0.00042739,31]
[334242574,1722855898289,-889.04,0.00042739,31]
[334242575,1722855898331,-518.2757592,0.00042739,31]
[334242576,1722855898371,-500.0,0.00042739,31]
[334242577,1722855898409,-537.72655727,0.00042739,31]
[334242578,1722855898446,-500.0,0.00042739,31]
[334242579,1722855898487,-500.0,0.00042739,31]
[334242580,1722855898523,-500.0,0.00042739,31]
[334242581,1722855898560,-500.0,0.00042739,31]
[334242582,1722855898601,-505.33,0.00042739,31]
[334242583,1722855898642,-500.0,0.00042739,31]
[334242584,1722855898681,-500.0,0.00042739,31]
[334242585,1722855898720,-1260.62,0.00042739,31]
[334242586,1722855898766,-500.0,0.00042739,31]